bitfinex/quotes_ETHUSD_20250411
["timestamp","ask_amount","ask_price","bid_price","bid_amount"]
[1744336218285,6.50279,1537.8,1537.5,1.3289]
[1744336218481,6.50382,1537.6,1537.3,3.0]
[1744336218939,6.50382,1537.6,1537.3,9.50481]
[1744336219734,6.50419,1537.5,1537.3,3.0]
[1744336219930,6.50491,1537.3,1537.0,4.3289]
[1744336220093,6.50491,1537.3,1537.0,1.3289]
[1744336220293,6.5049,1537.4,1537.0,1.3289]
[1744336220294,13.0098,1537.4,1537.0,10.83489]
[1744336220627,6.5049,1537.4,1537.1,6.50572]
[1744336220788,6.5049,1537.4,1537.1,7.44280875]
[1744336221145,6.50527,1537.3,1537.1,0.93708875]
[1744336221429,6.50536,1537.2,1537.0,4.3289]
[1744336221626,6.50575,1537.1,1536.8,2.26436307]
[1744336222127,6.50575,1537.1,1536.8,4.3289]
[1744336222638,6.50637,1537.0,1536.8,3.0]
[1744336222937,6.50697,1536.9,1536.6,2.23676307]
[1744336223424,6.50697,1536.9,1536.7,1.1724632]
[1744336223588,6.50697,1536.9,1536.7,1.52423187]
[1744336223783,6.50697,1536.9,1536.7,0.93802883]
[1744336224027,6.50697,1536.9,1536.7,0.35176867]
[1744336224428,7.05624,1537.0,1536.7,0.35176867]
[1744336224593,6.50576,1537.1,1536.7,9.77961351]
[1744336224794,6.50576,1537.1,1536.7,10.71507658]
[1744336225195,6.50576,1537.1,1536.8,1.17227487]
[1744336225390,13.01094,1537.2,1536.8,7.67912487]
[1744336225595,13.01094,1537.2,1536.8,7.09298097]
[1744336226132,13.01094,1537.2,1536.8,6.50685]
[1744336226312,13.0111,1537.2,1536.8,6.50685]
[1744336226723,6.50576,1537.1,1536.8,6.50685]
[1744336227549,6.50535,1537.2,1536.8,13.01368]
[1744336227730,6.50478,1537.4,1537.1,9.42615484]
[1744336227928,6.50409,1537.5,1537.2,6.50517]
[1744336228127,6.5037,1537.6,1537.3,2.92057484]
[1744336228325,6.5038,1537.6,1537.3,2.92057484]
[1744336228504,6.5038,1537.6,1537.3,9.90249766]
[1744336228704,6.5038,1537.6,1537.2,1.3583]
[1744336228705,6.50467,1537.4,1537.2,1.3583]
[1744336228912,6.50406,1537.5,1537.2,1.3583]
[1744336229138,6.50363,1537.7,1537.3,9.42512484]
[1744336229544,6.5024,1537.9,1537.5,9.42449484]
[1744336229750,6.5024,1537.9,1537.5,15.92840484]
[1744336230128,6.50285,1537.8,1537.5,9.42448484]
[1744336230330,6.5033,1537.7,1537.5,2.92057484]
[1744336230647,6.50327,1537.7,1537.4,2.92057484]
[1744336230944,6.50407,1537.5,1537.2,4.76977789]
[1744336231108,13.00847,1537.5,1537.2,7.76977789]
[1744336231308,6.50407,1537.5,1537.2,14.27500789]
[1744336232208,6.50407,1537.5,1537.3,0.27060447]
[1744336232422,6.50448,1537.4,1537.3,0.27060447]
[1744336232845,6.50407,1537.5,1537.3,0.27060447]
[1744336233226,13.0084,1537.5,1537.3,0.27060447]
[1744336233544,14.38,1537.9,1537.3,0.27060447]
[1744336233545,1.3243,1537.8,1537.3,0.27060447]
[1744336233846,6.50159,1538.1,1537.7,9.50294]
[1744336234046,6.50159,1538.1,1537.8,4.27887484]
[1744336234252,7.82544,1538.2,1537.8,11.01181162]
[1744336234759,7.82544,1538.2,1537.9,3.0]
[1744336234956,14.3268,1538.2,1538.0,0.2287109]
[1744336235258,7.82544,1538.2,1538.0,0.2287109]
[1744336235751,14.32679,1538.2,1538.0,0.2287109]
[1744336236052,6.50073,1538.3,1538.0,0.2287109]
[1744336236453,6.50152,1538.1,1538.0,0.2287109]
[1744336236619,6.50152,1538.1,1537.8,4.3583]
[1744336236824,6.50152,1538.1,1537.9,0.2287109]
[1744336237171,13.00412,1538.0,1537.8,4.3583]
[1744336237452,6.50132,1538.2,1537.8,10.8609]
[1744336237619,13.00258,1538.2,1537.9,0.2287109]
[1744336237819,9.5443,1538.4,1537.9,0.2287109]
[1744336237820,6.50181,1538.1,1537.9,0.2287109]
[1744336238021,6.50208,1538.0,1537.8,1.3583]
[1744336238961,6.50154,1538.1,1537.8,1.3583]
[1744336239161,7.05114,1538.2,1537.8,7.86095]
[1744336239455,6.50237,1537.9,1537.8,1.3583]
[1744336239827,6.50237,1537.9,1537.6,10.86192]
[1744336240330,6.50209,1538.0,1537.6,17.36536]
[1744336240862,1.3243,1537.9,1537.6,9.50344]
[1744336241069,6.50294,1537.8,1537.5,6.50399]
[1744336242066,6.50294,1537.8,1537.5,6.99194109]
[1744336242502,6.50251,1537.9,1537.6,6.50359]
[1744336242662,6.50286,1537.8,1537.5,6.99183109]
[1744336243371,13.00588,1537.8,1537.5,3.48795109]
[1744336243567,6.50344,1537.7,1537.5,0.48795109]
[1744336243766,6.50378,1537.6,1537.4,1.3583]
[1744336243960,13.00775,1537.6,1537.2,7.79573]
[1744336244253,13.00775,1537.6,1537.3,3.0]
[1744336244588,6.50413,1537.5,1537.2,7.79573]
[1744336244892,6.50471,1537.4,1537.2,1.2906]
[1744336245067,6.50514,1537.3,1537.0,1.2906]
[1744336245460,6.50514,1537.3,1537.1,3.0]
[1744336246205,13.00936,1537.4,1537.0,8.29578541]
[1744336246478,6.50492,1537.3,1537.1,3.0]
[1744336246682,13.01017,1537.3,1537.0,1.2906]
[1744336248095,13.01017,1537.3,1537.1,0.21087912]
[1744336248398,7.05533,1537.2,1537.1,0.21087912]
[1744336248696,13.56093,1537.2,1536.8,11.73308307]
[1744336248888,6.50449,1537.4,1537.1,6.50572]
[1744336249092,6.50409,1537.5,1537.2,1.2906]
[1744336249293,6.50453,1537.4,1537.3,0.19658865]
[1744336249692,6.50453,1537.4,1537.0,14.30266]
[1744336249896,6.50453,1537.4,1537.1,0.1963122]
[1744336250101,6.50511,1537.3,1537.1,0.1963122]
[1744336250462,13.01033,1537.3,1537.1,0.1963122]
[1744336250800,6.50511,1537.3,1537.1,0.1963122]
[1744336251106,13.01034,1537.3,1537.1,0.1963122]
[1744336251268,7.05533,1537.2,1537.1,0.1963122]
[1744336251468,13.56091,1537.2,1536.8,10.79759]
[1744336251668,7.05533,1537.2,1536.9,0.19651954]
[1744336251983,7.05533,1537.2,1536.8,10.79759]
[1744336252159,7.05533,1537.2,1537.0,0.19651954]
[1744336252362,7.05533,1537.2,1536.8,10.79742]
[1744336252559,6.50421,1537.5,1537.2,6.5053]
[1744336252799,6.50335,1537.7,1537.3,6.50476]
[1744336252965,6.50335,1537.7,1537.3,6.7019016]
[1744336253165,6.50382,1537.6,1537.3,6.7019016]
[1744336253368,6.50382,1537.6,1537.3,6.7019116]
[1744336253571,6.50268,1537.9,1537.5,6.50367]
[1744336253890,6.503,1537.8,1537.6,0.19575934]
[1744336254203,6.503,1537.8,1537.4,17.39409]
[1744336254410,6.503,1537.8,1537.7,0.19575934]
[1744336254602,6.503,1537.8,1537.4,17.39409]
[1744336254806,6.50242,1537.9,1537.7,0.19375571]
[1744336255011,6.50242,1537.9,1537.5,6.50391]
[1744336255205,7.80062,1538.2,1537.8,0.19375571]
[1744336255206,6.50158,1538.1,1537.8,0.19375571]
[1744336255395,13.00337,1538.1,1537.8,1.3855]
[1744336255591,6.50195,1538.0,1537.9,0.19354848]
[1744336255904,6.50195,1538.0,1537.7,3.0]
[1744336256215,6.50195,1538.0,1537.8,0.19354848]
[1744336257070,6.50158,1538.1,1537.8,0.19354848]
[1744336257298,6.50114,1538.2,1537.8,6.69616848]
[1744336257703,14.70875,1538.3,1537.9,13.00453]
[1744336257906,7.83132,1538.4,1538.0,1.52923621]
[1744336258187,1.331,1538.6,1538.3,6.50065]
[1744336258382,6.49918,1538.7,1538.3,13.00113]
[1744336258609,7.932056,1538.7,1538.4,0.19085523]
[1744336258889,14.431326,1538.7,1538.3,10.83748]
[1744336259102,7.932056,1538.7,1538.4,3.0]
[1744336259381,7.932056,1538.7,1538.5,0.18512181]
[1744336259917,0.55,1538.5,1538.2,3.0]
[1744336260118,6.50049,1538.4,1538.3,0.18512181]
[1744336260321,6.50049,1538.4,1538.1,1.337]
[1744336260525,7.04984,1538.5,1538.2,0.18332708]
[1744336260821,7.04984,1538.5,1538.2,6.50109]
[1744336261122,1.331,1538.7,1538.3,13.18442708]
[1744336261123,7.83005,1538.7,1538.3,13.18442708]
[1744336261321,6.49867,1538.8,1538.5,6.49977]
[1744336261526,8.207,1538.9,1538.6,6.49939]
[1744336261725,12.65693,1539.2,1538.7,0.18332708]
[1744336262019,6.49693,1539.2,1538.8,14.33356]
[1744336262188,13.27613141,1539.2,1538.8,14.51743924]
[1744336262388,13.27613141,1539.2,1538.8,14.51755924]
[1744336262614,6.77920141,1539.2,1538.8,0.18387924]
[1744336262784,6.49814,1538.9,1538.8,0.18387924]
[1744336262985,6.49814,1538.9,1538.6,1.337]
[1744336263184,6.49814,1538.9,1538.8,0.18387924]
[1744336263421,7.797744,1538.9,1538.8,0.18387924]
[1744336263589,12.99769,1538.8,1538.4,8.3247741]
[1744336263786,6.49902,1538.7,1538.4,8.3247741]
[1744336263990,6.4995,1538.6,1538.4,4.8245441]
[1744336264334,6.4995,1538.6,1538.4,1.337]
[1744336264626,7.799352,1538.6,1538.4,1.337]
[1744336265032,6.77920141,1539.2,1538.6,1.337]
[1744336265327,6.16,1540.0,1539.2,3.0]
[1744336265534,6.16,1540.6,1540.3,6.49224]
[1744336265834,6.16,1541.3,1541.0,6.48929]
[1744336266127,20.35933881,1541.9,1541.3,6.48802]
[1744336266431,20.35933881,1541.9,1541.7,6.48625]
[1744336266741,20.35933881,1541.9,1541.5,6.48697]
[1744336266937,6.48593,1541.8,1541.1,1.337]
[1744336267232,20.35933881,1541.9,1541.1,1.337]
[1744336267413,14.96552724,1541.4,1541.2,6.48841]
[1744336267617,14.96552724,1541.4,1541.0,6.98475998]
[1744336267823,14.96552724,1541.4,1541.2,3.32224851]
[1744336268146,14.96552724,1541.4,1541.0,6.48907]
[1744336268303,14.96552724,1541.4,1541.2,6.4882]
[1744336268504,16.41380407,1541.6,1541.5,6.48718]
[1744336268706,16.41380407,1541.6,1541.5,9.80942851]
[1744336269020,16.96380407,1541.6,1541.5,12.25942851]
[1744336269202,16.96380407,1541.6,1541.5,3.0]
[1744336269203,16.41380407,1541.6,1541.5,3.0]
[1744336269545,16.90258424,1542.4,1541.5,3.0]
[1744336269546,6.48416,1542.3,1541.5,3.0]
[1744336269836,0.648416,1542.2,1541.5,9.487]
[1744336270128,4.431,1542.4,1541.7,6.48629]
[1744336270435,1.431,1542.4,1541.5,9.48718]
[1744336270651,1.431,1542.4,1541.8,6.48551]
[1744336270992,1.431,1542.4,1542.0,6.48507]
[1744336271241,2.424,1542.4,1541.8,6.48562]
[1744336271745,2.424,1542.4,1541.2,6.48819]
[1744336271746,6.48532,1542.0,1541.2,6.48819]
[1744336272038,10.3569,1541.9,1541.6,8.19836636]
[1744336272250,16.8428,1541.9,1541.6,8.19836636]
[1744336272545,1.3079,1542.2,1541.6,8.19836636]
[1744336272753,2.90459,1542.2,1541.6,8.19836636]
[1744336272941,8.499,1542.3,1541.7,4.3756]
[1744336273144,8.499,1542.3,1542.0,6.48486]
[1744336273563,8.499,1542.3,1541.7,10.8616]
[1744336273712,0.55,1542.2,1541.7,7.86177]
[1744336273917,0.55,1542.0,1541.6,5.06633604]
[1744336274148,0.55,1541.8,1541.6,5.06633604]
[1744336274351,0.55,1541.8,1541.5,10.81767273]
[1744336274651,0.5492,1541.8,1541.5,10.81767273]
[1744336275212,0.5492,1541.8,1541.5,6.48679]
[1744336275455,2.6131668,1541.9,1541.4,4.50813931]
[1744336275953,2.6131668,1541.9,1541.8,6.48592]
[1744336276157,2.6131668,1541.9,1541.7,12.97248]
[1744336276353,2.6131668,1541.9,1541.5,7.8624]
[1744336276515,2.6131668,1541.9,1541.6,6.48635]
[1744336276856,8.495,1542.3,1541.7,6.48612]
[1744336277153,8.495,1542.3,1541.6,12.97287]
[1744336277344,8.495,1542.3,1541.7,6.48624]
[1744336277548,8.495,1542.3,1541.9,6.48543]
[1744336277863,8.495,1542.3,1541.9,12.97086]
[1744336278157,8.495,1542.3,1541.9,6.48543]
[1744336278359,8.495,1542.3,1541.8,6.48588]
[1744336278653,0.55,1542.2,1541.7,6.48607]
[1744336278866,7.03448,1542.2,1541.5,4.3756]
[1744336279014,0.55,1542.2,1541.5,1.3756]
[1744336279216,6.48492,1542.1,1541.4,4.50813931]
[1744336279457,0.395092,1542.6,1541.9,6.48516]
[1744336279619,6.4839,1542.3,1541.8,3.0]
[1744336279819,0.395092,1542.6,1542.3,6.48378]
[1744336280055,0.395092,1542.6,1542.1,3.0]
[1744336280258,6.48046,1543.1,1542.2,6.48402]
[1744336280565,7.129256,1543.0,1542.3,6.4838]
[1744336280763,0.648046,1543.0,1542.5,6.48294]
[1744336281283,6.48004,1543.2,1542.6,6.48254]
[1744336281488,8.861,1543.3,1542.8,6.48166]
[1744336281769,6.48071,1543.1,1542.5,3.0]
[1744336281968,6.48044,1543.2,1542.6,6.48227]
[1744336282267,8.861,1543.3,1542.7,6.4821]
[1744336282432,8.861,1543.3,1542.8,6.48141]
[1744336282628,6.4802,1543.2,1542.6,6.48237]
[1744336282861,15.34073,1543.3,1542.4,1.3756]
[1744336283031,0.55,1542.8,1542.4,4.3756]
[1744336283241,6.48298,1542.5,1542.4,1.3756]
[1744336283444,0.55,1542.4,1541.7,1.3756]
[1744336283781,0.55,1542.5,1541.9,4.50813931]
[1744336283782,0.55,1542.2,1541.9,4.50813931]
[1744336283929,7.03425,1542.2,1541.9,4.50813931]
[1744336284261,0.55,1542.1,1541.9,4.50813931]
[1744336284439,6.48508,1542.0,1541.9,4.50813931]
[1744336284641,6.48342,1542.4,1541.9,4.50813931]
[1744336284849,0.55,1542.1,1541.9,4.50813931]
[1744336285162,7.03508,1542.0,1541.9,4.50813931]
[1744336285346,18.552974,1542.0,1541.9,4.50813931]
[1744336285535,23.67968882,1542.0,1541.5,5.95100748]
[1744336285729,7.03676,1541.6,1541.5,5.95100748]
[1744336285932,6.48779,1541.4,1540.9,3.0]
[1744336286157,6.48642,1541.7,1540.8,5.7792621]
[1744336286326,12.16223482,1541.9,1540.8,15.80951968]
[1744336286534,6.48778,1541.4,1540.9,3.0]
[1744336286743,6.48778,1541.4,1540.8,15.80951968]
[1744336286744,1.382,1541.7,1540.8,5.7792621]
[1744336287067,6.48874,1541.2,1540.8,5.7792621]
[1744336287230,6.4889,1541.1,1540.8,5.7792621]
[1744336287433,6.4889,1541.1,1540.8,4.4638621]
[1744336287651,6.48971,1540.9,1540.8,4.4638621]
[1744336287844,7.87062,1541.2,1540.8,4.4638621]
[1744336288180,6.48935,1541.0,1540.8,4.4638621]
[1744336288381,6.48935,1541.0,1540.5,7.80679]
[1744336288579,12.97897,1541.0,1540.6,0.56745368]
[1744336288878,6.48935,1541.0,1540.6,0.56745368]
[1744336289078,1.382,1541.2,1540.6,0.56745368]
[1744336289274,6.48959,1541.0,1540.7,0.1248688]
[1744336289579,6.48959,1541.0,1540.8,0.56745368]
[1744336289776,6.48959,1541.0,1540.9,0.1248688]
[1744336289982,6.48971,1540.9,1540.8,0.56745368]
[1744336290150,6.48971,1540.9,1540.8,0.69232248]
[1744336290344,6.48959,1541.0,1540.8,0.1248688]
[1744336290545,12.97922,1541.0,1540.6,0.56745368]
[1744336290744,12.97922,1541.0,1540.7,0.1248688]
[1744336291072,6.48982,1540.9,1540.6,0.56745368]
[1744336291302,6.48959,1541.0,1540.8,0.1248688]
[1744336291479,7.87067,1541.2,1540.7,7.05782368]
[1744336291647,6.48805,1541.3,1540.9,0.1248688]
[1744336291847,6.48803,1541.3,1540.8,3.0]
[1744336292047,6.48803,1541.3,1541.0,0.1248688]
[1744336292249,6.48892,1541.1,1540.9,0.56745368]
[1744336292656,6.48853,1541.2,1540.9,0.56745368]
[1744336292855,6.48896,1541.1,1540.9,0.56745368]
[1744336293283,6.48853,1541.2,1541.0,0.13152804]
[1744336293453,6.48807,1541.3,1541.1,0.57240008]
[1744336293653,6.48845,1541.2,1541.1,0.57240008]
[1744336293870,6.48887,1541.1,1541.0,0.56745368]
[1744336294072,6.48845,1541.2,1541.0,0.56745368]
[1744336294467,6.48845,1541.2,1541.1,0.56745368]
[1744336294676,6.48814,1541.3,1541.1,1.14228723]
[1744336295193,6.48814,1541.3,1541.2,0.57483355]
[1744336295365,6.48814,1541.3,1541.2,1.14228723]
[1744336295693,6.48766,1541.4,1541.2,1.14228723]
[1744336295876,6.48802,1541.3,1541.2,1.14228723]
[1744336296191,6.48802,1541.3,1541.2,1.48807406]
[1744336297588,16.73028,1541.5,1541.2,1.48807406]
[1744336297794,6.48802,1541.3,1541.2,1.14228723]
[1744336298096,8.861,1541.5,1541.2,1.14228723]
[1744336298294,6.48655,1541.7,1541.3,1.14228723]
[1744336298498,6.48662,1541.7,1541.3,1.14228723]
[1744336298824,6.4876,1541.4,1541.3,0.56745368]
[1744336299294,15.3486,1541.4,1541.3,1.14375627]
[1744336299881,15.3486,1541.4,1541.3,0.56745368]
[1744336300377,8.861,1541.4,1541.3,0.56745368]
[1744336300697,12.96398882,1542.0,1541.3,0.56745368]
[1744336300856,6.48634,1541.7,1541.3,0.56745368]
[1744336301054,6.48676,1541.6,1541.4,0.12857454]
[1744336301259,6.48645,1541.7,1541.5,0.34565214]
[1744336301494,6.48676,1541.6,1541.5,0.34565214]
[1744336301694,6.48645,1541.7,1541.5,0.34565214]
[1744336302002,6.48645,1541.7,1541.5,0.91310582]
[1744336302158,6.48676,1541.6,1541.5,0.91310582]
[1744336303208,7.784081,1541.6,1541.5,0.91310582]
[1744336303396,6.49036,1540.8,1540.5,7.60960748]
[1744336303710,12.98001,1540.9,1540.5,7.60960748]
[1744336303891,6.49014,1540.8,1540.5,7.60960748]
[1744336304218,15.3499,1541.1,1540.6,7.06791617]
[1744336304505,15.3499,1541.1,1540.7,0.57712617]
[1744336304705,15.3499,1541.1,1540.7,7.54597114]
[1744336304890,15.3499,1541.1,1540.8,0.57712617]
[1744336305095,8.861,1541.1,1540.8,0.57712617]
[1744336305392,15.91114582,1541.6,1540.8,0.57712617]
[1744336305393,15.34825,1541.5,1541.1,6.48885]
[1744336305580,8.861,1541.5,1540.9,10.7186]
[1744336305779,15.34828,1541.5,1541.0,12.97821]
[1744336305994,6.48765,1541.4,1540.9,17.20812]
[1744336306191,8.861,1541.5,1540.9,10.7186]
[1744336306377,8.861,1541.5,1541.2,6.48821]
[1744336306905,15.34823,1541.5,1541.1,9.48882]
[1744336307309,8.861,1541.5,1541.2,6.48808]
[1744336307602,8.861,1541.5,1541.2,7.06460805]
[1744336308008,15.34828,1541.5,1541.3,0.57652805]
[1744336308307,8.861,1541.5,1541.3,0.57652805]
[1744336308473,6.48788,1541.4,1541.1,0.57652805]
[1744336308668,15.34819,1541.5,1541.1,0.57652805]
[1744336308871,8.861,1541.5,1541.3,0.04922185]
[1744336309663,2.42705498,1541.5,1541.3,0.04922185]
[1744336309891,8.91444498,1541.5,1541.3,0.04922185]
[1744336310489,6.4876,1541.4,1541.3,0.04922185]
[1744336311234,7.2501394,1541.4,1541.3,0.04922185]
[1744336311528,15.40181498,1541.5,1541.3,0.04922185]
[1744336311711,6.4876,1541.4,1541.3,0.04922185]
[1744336313025,8.6569,1541.4,1541.3,0.04922185]
[1744336313327,8.1069,1541.4,1541.3,0.04922185]
[1744336313513,1.6193,1541.4,1541.3,0.04922185]
[1744336313839,9.67294398,1541.4,1541.3,0.04922185]
[1744336315234,6.4876,1541.4,1541.3,0.04922185]
[1744336315600,2.42705498,1541.5,1541.3,0.17841493]
[1744336315821,8.91432498,1541.5,1541.3,0.17841493]
[1744336316029,8.91432498,1541.5,1541.4,1.51302993]
[1744336316345,8.91432498,1541.5,1541.4,1.64133]
[1744336316904,2.42705498,1541.5,1541.4,2.290933]
[1744336317113,8.10566,1541.7,1541.4,1.64133]
[1744336317668,6.48676,1541.6,1541.5,0.93113906]
[1744336318030,6.48636,1541.7,1541.5,1.05834025]
[1744336318227,6.48636,1541.7,1541.6,0.58189087]
[1744336318479,7.03502,1542.1,1541.6,0.9311268]
[1744336318480,1.6459,1542.1,1541.6,0.9311268]
[1744336318680,1.6459,1542.6,1541.9,6.4853]
[1744336318890,1.6459,1542.9,1542.4,1.5379]
[1744336319170,6.48051,1543.1,1542.6,6.48253]
[1744336319371,6.48051,1543.1,1542.7,3.12212114]
[1744336319973,1.6459,1543.2,1542.8,0.34923593]
[1744336320370,6.4813,1542.9,1542.8,0.34923593]
[1744336320575,8.1272,1542.9,1542.8,0.34923593]
[1744336320728,7.03214,1542.7,1542.6,0.34923593]
[1744336321434,6.48382,1542.3,1542.1,1.5379]
[1744336321740,12.9663,1542.5,1542.3,5.95100748]
[1744336322065,8.1293,1542.4,1542.3,5.95100748]
[1744336324670,6.48382,1542.3,1542.2,0.04922185]
[1744336325046,8.1293,1542.4,1542.2,0.04922185]
[1744336325264,9.83413,1542.4,1542.2,0.04922185]
[1744336325465,6.48382,1542.3,1542.2,0.04922185]
[1744336327189,12.96711,1542.4,1542.2,0.04922185]
[1744336327390,6.48382,1542.3,1542.2,0.04922185]
[1744336327746,6.48358,1542.4,1542.2,1.58712185]
[1744336327951,6.48345,1542.4,1542.2,0.04922185]
[1744336328279,6.48382,1542.3,1542.2,0.04922185]
[1744336328990,13.615495,1542.4,1542.2,0.04922185]
[1744336329287,6.48345,1542.4,1542.2,0.04922185]
[1744336329457,6.48382,1542.3,1542.2,0.04922185]
[1744336329658,12.96724,1542.4,1542.2,0.04922185]
[1744336329871,6.48345,1542.4,1542.2,0.04922185]
[1744336330390,6.48257,1542.6,1542.2,0.04922185]
[1744336331101,17.04662,1542.8,1542.2,0.04922185]
[1744336331256,1.6459,1542.8,1542.2,0.04922185]
[1744336331597,12.96411,1542.8,1542.3,7.98526]
[1744336331899,6.48103,1543.0,1542.5,6.48262]
[1744336332188,6.48049,1543.1,1542.6,1.5016]
[1744336332391,12.9623,1543.0,1542.6,4.5016]
[1744336332596,6.48102,1543.0,1542.6,4.5016]
[1744336333100,6.48102,1543.0,1542.6,10.98415]
[1744336333295,6.47973,1543.3,1542.6,14.10173758]
[1744336333487,6.47973,1543.3,1543.0,1.5016]
[1744336333672,6.48019,1543.2,1543.0,1.5016]
[1744336333873,8.917,1543.4,1543.0,1.5016]
[1744336334077,10.4678,1543.9,1543.0,1.98816162]
[1744336334261,0.005,1543.9,1543.4,1.5016]
[1744336334465,6.47764,1543.8,1543.5,3.0]
[1744336334709,6.47752,1543.8,1543.5,3.0]
[1744336334906,6.47752,1543.8,1543.4,7.98077]
[1744336334907,6.47752,1543.8,1543.4,1.5016]
[1744336335199,0.005,1543.9,1543.4,1.5016]
[1744336335402,0.005,1543.7,1543.4,1.5016]
[1744336335700,6.47853,1543.6,1543.4,1.5016]
[1744336336004,6.47853,1543.6,1543.2,1.5016]
[1744336336005,6.47936,1543.4,1543.2,1.5016]
[1744336336303,6.47878,1543.5,1543.2,1.5016]
[1744336336514,6.48312,1543.7,1543.2,1.5016]
[1744336336669,0.005,1543.7,1543.4,6.47919]
[1744336337493,0.005,1543.7,1543.2,1.5016]
[1744336337695,6.47898,1543.5,1543.2,1.5016]
[1744336337896,12.9581,1543.5,1543.2,1.5016]
[1744336338201,7.77459,1543.5,1543.2,1.5016]
[1744336338366,6.47926,1543.4,1543.2,1.5016]
[1744336338575,7.77459,1543.5,1543.2,1.5016]
[1744336338784,7.77459,1543.5,1543.2,1.97962784]
[1744336339102,6.47937,1543.4,1543.2,1.5016]
[1744336339609,7.77488,1543.5,1543.2,1.5016]
[1744336339904,6.47922,1543.4,1543.2,1.5016]
[1744336340497,6.47907,1543.5,1543.2,1.5016]
[1744336341769,0.005,1543.7,1543.2,1.98997434]
[1744336341770,6.48301,1543.7,1543.2,1.98997434]
[1744336342107,0.005,1543.7,1543.2,4.98997434]
[1744336342295,6.48298,1543.7,1543.3,3.0]
[1744336342617,0.005,1543.7,1543.6,10.97996]
[1744336342780,0.400092,1544.2,1543.7,3.0]
[1744336343112,1.1,1544.6,1543.7,3.0]
[1744336343113,1.1,1544.6,1544.4,6.47498]
[1744336343314,1.1,1544.6,1544.4,1.5016]
[1744336343500,1.1,1544.6,1544.5,14.51631758]
[1744336343806,1.1,1544.6,1544.5,2.151193]
[1744336344004,1.1,1544.6,1544.5,4.5016]
[1744336344213,1.1,1544.6,1544.5,10.97618]
[1744336344611,1.1,1544.6,1544.5,1.5016]
[1744336344813,1.1,1544.6,1544.5,7.97618]
[1744336345380,1.1,1544.6,1544.5,1.5016]
[1744336345699,1.1,1544.6,1544.4,0.49731217]
[1744336345924,1.5261,1544.5,1544.0,1.5781]
[1744336346080,6.47543,1544.3,1543.8,8.05533]
[1744336346270,6.47538,1544.4,1543.9,6.47708]
[1744336346475,6.47543,1544.3,1543.9,0.48079662]
[1744336346719,6.47538,1544.4,1543.8,8.05529]
[1744336346885,7.123128,1544.3,1543.7,0.4881648]
[1744336347075,6.47615,1544.2,1543.6,6.47812]
[1744336347275,6.47615,1544.2,1543.5,11.05651]
[1744336347512,6.47647,1544.1,1543.6,6.47817]
[1744336347722,6.47647,1544.1,1543.6,6.9595871]
[1744336347894,9.248,1544.3,1543.6,0.4814171]
[1744336348227,1.5261,1544.1,1543.4,5.95100748]
[1744336348549,17.24937,1544.1,1543.4,6.42616232]
[1744336348826,6.47823,1543.7,1543.4,6.42616232]
[1744336349019,6.47727,1543.9,1543.4,6.42616232]
[1744336349221,6.47668,1544.0,1543.4,5.95100748]
[1744336349423,6.47878,1543.5,1543.4,5.95100748]
[1744336349586,6.47853,1543.6,1543.4,5.95100748]
[1744336349786,12.95633,1543.7,1543.4,5.95100748]
[1744336349986,6.47844,1543.6,1543.4,5.95100748]
[1744336350414,12.95542,1543.8,1543.4,5.95100748]
[1744336350622,6.47795,1543.7,1543.4,5.95100748]
[1744336350929,12.95621,1543.7,1543.4,5.95100748]
[1744336351451,6.4776,1543.8,1543.4,5.95100748]
[1744336351628,6.4776,1543.8,1543.4,12.43001748]
[1744336352030,9.247,1544.0,1543.5,6.47837]
[1744336352191,9.247,1544.0,1543.5,1.5781]
[1744336352393,9.247,1544.0,1543.5,8.55687]
[1744336352618,9.247,1544.0,1543.6,6.47818]
[1744336352816,9.247,1544.0,1543.6,6.47809]
[1744336353020,9.247,1544.0,1543.7,6.47793]
[1744336353218,9.247,1544.0,1543.7,0.49539795]
[1744336353434,9.247,1544.0,1543.6,6.47805]
[1744336353832,9.247,1544.0,1543.5,2.0781]
[1744336353833,6.47545,1544.3,1543.5,5.0781]
[1744336354033,16.82153,1544.6,1544.0,8.05295]
[1744336354197,6.47543,1544.3,1544.0,1.5763]
[1744336354397,6.47665,1544.1,1543.7,2.05698893]
[1744336354637,6.47665,1544.1,1543.6,0.34428715]
[1744336354638,6.4779,1543.8,1543.6,0.34428715]
[1744336355135,6.47794,1543.7,1543.6,0.34428715]
[1744336355358,6.4784,1543.6,1543.4,5.95100748]
[1744336355555,6.47878,1543.5,1543.4,5.95100748]
[1744336355932,6.4784,1543.6,1543.4,5.95100748]
[1744336356334,6.47831,1543.7,1543.4,5.95100748]
[1744336356542,6.47854,1543.6,1543.4,5.95100748]
[1744336356742,1.6579,1543.7,1543.4,5.95100748]
[1744336356933,6.47857,1543.6,1543.4,5.95100748]
[1744336357131,6.47878,1543.5,1543.4,5.95100748]
[1744336360335,7.774515,1543.5,1543.4,5.95100748]
[1744336360534,6.47878,1543.5,1543.4,5.95100748]
[1744336363543,6.47935,1543.4,1543.2,0.0112638]
[1744336363958,6.47962,1543.3,1543.2,0.0112638]
[1744336364256,6.47912,1543.5,1543.2,0.0112638]
[1744336364459,1.5589,1543.9,1543.3,1.5823]
[1744336364660,6.47752,1543.8,1543.4,0.34725863]
[1744336364869,6.47878,1543.5,1543.4,0.34725863]
[1744336365477,6.47962,1543.3,1543.2,0.0112638]
[1744336366170,6.47938,1543.4,1543.2,0.0112638]
[1744336366375,6.47962,1543.3,1543.2,0.0112638]
[1744336366550,7.77552,1543.3,1543.2,0.0112638]
[1744336366758,8.03978,1543.0,1542.9,0.92669109]
[1744336366934,17.28878,1543.0,1542.9,0.5791802]
[1744336367391,6.48188,1542.8,1542.5,0.5791802]